bitfinex/quotes_ETHUSD_20250324
["timestamp","ask_amount","ask_price","bid_price","bid_amount"]
[1742815382031,1.087344,2094.5,2094.1,10.34922]
[1742815382613,1.087344,2094.5,2094.1,10.3492]
[1742815382921,1.087344,2094.5,2094.2,4.77489]
[1742815383506,1.087344,2094.5,2094.2,5.56]
[1742815383817,5.861774,2094.5,2094.2,5.56]
[1742815384024,1.087344,2094.5,2094.2,5.56]
[1742815384326,1.087344,2094.5,2094.2,10.33507]
[1742815384912,1.5686534,2094.4,2093.9,0.7764]
[1742815385115,6.3434234,2094.4,2093.9,4.77568]
[1742815385312,3.0,2094.3,2094.0,5.543]
[1742815385629,3.0,2094.3,2094.0,10.31841]
[1742815385795,3.0,2094.3,2094.1,4.77525]
[1742815386124,4.5686534,2094.4,2094.1,4.77524]
[1742815386596,0.55,2094.4,2094.2,4.77508]
[1742815386996,0.55,2094.4,2094.2,4.77499]
[1742815387334,0.55,2094.5,2094.3,4.77482]
[1742815387506,0.55,2094.5,2094.3,4.77474]
[1742815388720,0.55,2094.6,2094.4,4.77451]
[1742815389928,0.55,2094.6,2094.3,4.77474]
[1742815390625,0.55,2094.6,2094.3,15.04948]
[1742815390827,0.55,2094.6,2094.3,15.04949]
[1742815391136,0.55,2094.6,2094.3,10.27471]
[1742815391606,0.35231119,2094.8,2094.4,4.77456]
[1742815391932,0.55,2094.7,2094.4,4.77456]
[1742815392134,3.55,2094.7,2094.4,4.77456]
[1742815392427,3.55,2094.7,2094.4,4.77451]
[1742815392597,0.55,2094.7,2094.5,4.77437]
[1742815393232,0.55,2094.7,2094.5,4.77428]
[1742815393930,1.59018136,2094.7,2094.4,4.7746]
[1742815394134,1.59018136,2094.7,2094.4,9.54907]
[1742815394307,1.59018136,2094.7,2094.4,4.77447]
[1742815394708,1.59018136,2094.7,2094.4,9.54896]
[1742815394918,1.59018136,2094.7,2094.5,4.77437]
[1742815395732,1.59018136,2094.7,2094.4,4.77447]
[1742815396317,4.59018136,2094.7,2094.4,4.77447]
[1742815396835,4.59018136,2094.7,2094.4,10.21547]
[1742815397843,1.59018136,2094.7,2094.5,4.77434]
[1742815398143,0.55,2094.7,2094.6,4.77418]
[1742815398827,0.55,2094.7,2094.5,4.77432]
[1742815399026,0.55,2094.7,2094.5,10.19732]
[1742815399339,0.55,2094.7,2094.5,14.97157]
[1742815399548,0.55,2094.7,2094.5,10.19725]
[1742815399737,0.55,2094.7,2094.6,4.77418]
[1742815400425,0.55,2094.7,2094.5,10.19725]
[1742815401844,0.55,2094.7,2094.6,4.77418]
[1742815402146,4.77306,2095.1,2094.7,4.7739]
[1742815402443,4.77306,2095.1,2094.6,4.77418]
[1742815402444,0.954589,2095.1,2094.8,4.77371]
[1742815402615,0.7911,2095.2,2094.6,5.56437]
[1742815402820,0.7911,2095.2,2094.5,5.423]
[1742815402821,3.85932115,2095.1,2094.5,5.423]
[1742815403115,0.55,2094.5,2094.3,5.39]
[1742815403318,4.937073,2094.5,2093.7,10.32657112]
[1742815403636,3.55,2094.1,2093.8,14.94371]
[1742815403844,3.55,2094.1,2093.9,4.77576]
[1742815404353,0.55,2094.2,2093.7,11.10564112]
[1742815404529,0.55,2093.7,2093.6,5.384]
[1742815404858,3.55,2093.7,2093.6,5.384]
[1742815405217,8.32623,2093.7,2093.6,5.384]
[1742815406147,3.55,2093.7,2093.6,5.384]
[1742815406551,8.32623,2093.7,2093.6,5.384]
[1742815406843,8.32623,2093.7,2093.3,0.9359415]
[1742815406844,0.55,2093.4,2093.3,0.9359415]
[1742815407017,5.32682,2093.5,2093.1,10.14659]
[1742815407414,0.55,2093.2,2093.0,5.368]
[1742815407640,0.55,2093.2,2093.0,5.72546232]
[1742815408012,3.55,2093.2,2093.0,0.35746232]
[1742815408211,8.32744,2093.2,2093.0,0.35746232]
[1742815408418,8.3276,2093.1,2093.0,0.35746232]
[1742815408946,8.3276,2093.1,2093.0,5.13529232]
[1742815408947,3.55,2093.1,2093.0,5.13529232]
[1742815409152,0.8235,2093.6,2093.0,5.89629232]
[1742815409316,3.8235,2093.6,2093.3,4.777]
[1742815409745,0.55,2093.5,2093.4,4.77687]
[1742815409946,3.0,2093.7,2093.4,4.77687]
[1742815410346,0.36166484,2093.8,2093.5,4.77666]
[1742815410546,4.77603,2093.8,2093.5,4.77666]
[1742815410748,0.55,2093.7,2093.5,4.77666]
[1742815411051,3.55,2093.7,2093.4,10.1359]
[1742815411545,3.91019524,2093.7,2093.4,10.13579]
[1742815411954,8.32623,2093.7,2093.4,5.359]
[1742815413121,0.55,2093.7,2093.4,10.13583]
[1742815413327,0.55,2093.7,2093.3,4.777]
[1742815413328,7.77661,2093.6,2093.2,10.11815]
[1742815413518,3.55,2093.4,2093.2,10.11815]
[1742815413724,9.14082,2093.4,2093.0,4.7778]
[1742815413959,9.14082,2093.4,2093.0,9.55548]
[1742815414145,3.55,2093.2,2092.9,4.77802]
[1742815414345,5.32741,2093.2,2092.8,11.09518525]
[1742815414657,4.77773,2093.1,2092.7,4.77851]
[1742815414953,0.55,2092.9,2092.6,5.339]
[1742815415158,0.55,2092.9,2092.5,4.7789]
[1742815415160,3.0,2092.8,2092.5,4.7789]
[1742815415353,0.55,2092.5,2092.4,4.77897]
[1742815415951,0.55,2092.5,2092.3,4.77941]
[1742815415952,0.55,2092.3,2092.2,4.77964]
[1742815416152,0.55,2092.8,2092.6,4.77862]
[1742815416354,0.55,2092.8,2092.5,4.77889]
[1742815416556,0.55,2092.8,2092.7,4.77851]
[1742815416755,0.55,2092.8,2092.6,4.77867]
[1742815417125,0.55,2092.8,2092.5,10.11584]
[1742815417326,4.938278,2092.8,2092.3,9.55867]
[1742815417522,5.32859,2092.7,2092.3,9.55853]
[1742815417757,3.55,2092.7,2092.4,4.77903]
[1742815417954,0.55,2092.7,2092.1,5.61245]
[1742815418258,0.55,2092.7,2092.5,4.77879]
[1742815418458,0.55,2092.8,2092.6,4.77864]
[1742815418653,0.55,2092.8,2092.5,9.55765]
[1742815418951,0.55,2092.8,2092.4,9.55827]
[1742815419129,0.55,2092.6,2092.4,4.77909]
[1742815419330,0.55,2092.6,2092.3,4.77939]
[1742815419526,0.55,2092.6,2092.2,4.77962]
[1742815419731,0.55,2092.6,2092.2,4.77953]
[1742815419937,0.55,2092.6,2092.2,4.77965]
[1742815420138,0.7765,2093.0,2092.7,4.77848]
[1742815420343,7.77745,2093.2,2092.8,4.7781]
[1742815420529,4.77745,2093.2,2092.8,4.7781]
[1742815420725,0.7915,2093.3,2093.0,4.77766]
[1742815420941,0.7915,2093.3,2093.1,4.77748]
[1742815421137,1.10384666,2093.4,2093.2,4.77737]
[1742815421430,1.10384666,2093.4,2093.1,4.77748]
[1742815421431,0.55,2093.2,2093.0,4.77768]
[1742815421734,4.45695886,2093.4,2093.1,4.77748]
[1742815421935,0.55,2093.3,2093.1,4.77748]
[1742815422152,8.1300622,2093.4,2093.0,4.77782]
[1742815422334,0.55,2093.3,2093.0,9.55552]
[1742815422534,3.0,2093.3,2093.1,4.77757]
[1742815422762,4.68563261,2093.4,2093.1,4.77757]
[1742815423060,0.55,2093.3,2093.0,4.7777]
[1742815423262,0.55,2093.3,2093.0,9.5554]
[1742815423572,0.55,2093.3,2093.1,4.77759]
[1742815426063,0.55,2093.3,2093.0,4.77775]
[1742815426269,0.55,2093.3,2093.0,9.55546]
[1742815426848,0.55,2093.3,2093.0,14.85546]
[1742815427366,0.55,2093.3,2093.1,4.77759]
[1742815427869,0.55,2093.3,2093.0,4.77779]
[1742815428169,0.55,2093.3,2093.0,9.55549]
[1742815428372,0.55,2093.3,2093.0,4.7777]
[1742815428774,0.55,2093.3,2093.0,9.55537]
[1742815428970,0.55,2093.3,2093.0,4.77767]
[1742815433174,0.55,2093.1,2093.0,4.77767]
[1742815433861,0.55,2093.1,2092.9,10.03599]
[1742815434062,0.55,2093.1,2092.9,5.258]
[1742815434270,0.55,2093.1,2092.8,10.02221]
[1742815434563,0.55,2093.1,2092.9,4.77805]
[1742815434758,0.55,2093.1,2092.8,10.02021]
[1742815434981,3.55,2093.1,2092.8,10.02021]
[1742815435487,3.55,2093.1,2092.8,14.79834]
[1742815435690,8.32761,2093.1,2092.7,10.36779809]
[1742815435985,0.55,2093.0,2092.7,10.36659809]
[1742815436361,3.55,2093.0,2092.7,10.81331352]
[1742815436557,3.55,2093.0,2092.7,10.45601543]
[1742815436558,8.32789,2093.0,2092.7,10.45601543]
[1742815436766,3.55,2093.0,2092.7,10.45601543]
[1742815437295,3.55,2093.0,2092.7,5.22501543]
[1742815437483,3.55,2093.0,2092.7,15.22639543]
[1742815438271,3.55,2093.0,2092.8,4.77827]
[1742815440063,3.55,2093.0,2092.7,10.0013]
[1742815440261,3.55,2093.0,2092.7,14.77972]
[1742815440893,3.55,2093.0,2092.7,10.0013]
[1742815441100,4.77851,2092.7,2092.6,5.55037112]
[1742815441296,7.77851,2092.7,2092.6,5.55037112]
[1742815441494,8.32879,2092.6,2092.3,9.97739]
[1742815441997,13.10773,2092.6,2092.3,5.198]
[1742815442299,8.3292,2092.4,2092.3,5.198]
[1742815442497,0.55,2092.4,2092.3,5.198]
[1742815442867,5.3292,2092.4,2092.3,5.198]
[1742815443063,5.3292,2092.4,2092.2,0.35759073]
[1742815443064,9.12802,2092.3,2092.2,0.35759073]
[1742815443365,32.466977,2092.3,2092.2,0.35759073]
[1742815443583,7.78011,2092.0,2091.9,0.124596]
[1742815443765,0.7986,2091.4,2091.1,4.78207]
[1742815443964,0.55,2091.3,2091.1,4.78202]
[1742815444164,0.55,2091.3,2091.0,4.78229]
[1742815444364,0.55,2091.3,2091.2,4.78194]
[1742815444699,3.55,2091.7,2091.4,4.78135]
[1742815444993,0.55,2091.7,2091.5,4.78109]
[1742815445182,0.55,2091.9,2091.6,4.78101]
[1742815445384,0.55,2091.9,2091.6,4.78087]
[1742815445806,3.0,2091.8,2091.5,4.78123]
[1742815446168,3.55,2091.9,2091.4,4.78148]
[1742815446390,0.55,2091.6,2091.4,4.78127]
[1742815446570,0.55,2091.7,2091.5,4.78125]
[1742815446766,0.8306,2092.0,2091.9,4.78034]
[1742815446985,3.0,2092.2,2091.9,4.78019]
[1742815447173,0.8208,2092.3,2091.7,4.78078]
[1742815447377,0.8208,2092.3,2091.7,5.866608]
[1742815447582,8.60035,2092.3,2091.9,4.78034]
[1742815447803,8.60035,2092.3,2091.9,9.5605]
[1742815447998,0.55,2092.2,2091.9,4.78016]
[1742815448218,4.77991,2092.1,2091.6,10.07091]
[1742815448507,0.55,2091.6,2091.5,5.22639211]
[1742815449080,0.55,2091.6,2091.5,4.78117]
[1742815449280,0.55,2091.9,2091.6,4.78102]
[1742815449908,5.33047,2091.9,2091.5,4.78117]
[1742815450128,3.55,2091.9,2091.6,4.78093]
[1742815450420,0.55,2091.9,2091.4,4.78146]
[1742815450582,0.55,2091.9,2091.7,4.78079]
[1742815450782,0.55,2091.9,2091.7,4.78071]
[1742815451009,0.55,2091.9,2091.7,9.56136]
[1742815451317,0.55,2091.9,2091.7,4.78065]
[1742815451608,0.55,2091.9,2091.6,4.78101]
[1742815451792,3.55,2091.7,2091.4,9.56279]
[1742815451977,0.55,2091.7,2091.3,6.0916]
[1742815452178,8.33042,2091.9,2091.5,4.7812]
[1742815452379,3.55,2091.7,2091.4,4.78128]
[1742815453085,0.55,2091.7,2091.4,4.78128]
[1742815453284,0.55,2091.7,2091.5,4.78125]
[1742815453499,0.55,2091.7,2091.4,4.78145]
[1742815453699,0.55,2091.7,2091.1,4.78217]
[1742815453700,3.55,2091.5,2091.1,4.78217]
[1742815453899,9.11474,2091.5,2091.1,4.78207]
[1742815454079,3.55,2091.3,2091.1,4.78207]
[1742815454284,0.55,2091.3,2091.0,4.78224]
[1742815454502,3.55,2091.3,2091.1,4.78207]
[1742815454712,3.55,2091.3,2091.1,4.78208]
[1742815454713,0.55,2091.3,2091.1,4.78208]
[1742815455009,0.55,2091.3,2091.1,9.56407]
[1742815455213,0.55,2091.3,2091.1,9.56406]
[1742815455407,0.55,2091.3,2091.1,4.78199]
[1742815455615,0.55,2091.4,2091.2,4.78182]
[1742815455810,0.55,2091.4,2091.2,4.78178]
[1742815455984,0.55,2091.5,2091.3,4.78171]
[1742815456512,1.14609455,2091.8,2091.4,4.78148]
[1742815456711,8.92674455,2091.8,2091.0,5.53349]
[1742815456883,0.55,2091.7,2091.3,4.78149]
[1742815457085,0.55,2091.7,2091.4,4.7814]
[1742815457486,0.55,2091.7,2091.4,4.78142]
[1742815457716,0.55,2091.7,2091.5,4.78113]
[1742815458389,0.55,2091.7,2091.6,4.78102]
[1742815458589,0.55,2091.7,2091.5,4.78114]
[1742815458800,0.55,2091.7,2091.6,4.78102]
[1742815459017,0.55,2091.7,2091.5,9.56223]
[1742815459315,0.55,2091.7,2091.6,4.78102]
[1742815459705,0.55,2091.7,2091.5,4.78123]
[1742815459901,0.55,2091.7,2091.5,4.78112]
[1742815460419,0.55,2091.7,2091.5,4.78109]
[1742815460625,0.55,2091.7,2091.6,4.78102]
[1742815460995,0.55,2091.7,2091.5,4.78118]
[1742815461204,0.55,2091.7,2091.5,9.56234]
[1742815461390,0.55,2091.7,2091.5,9.56226]
[1742815461611,0.55,2091.7,2091.5,4.7811]
[1742815461814,0.55,2091.7,2091.5,9.56219]
[1742815462212,0.55,2091.7,2091.5,4.78109]
[1742815463023,0.8321,2092.0,2091.8,4.78044]
[1742815463709,0.8321,2092.0,2091.9,4.78034]
[1742815464027,3.7647,2092.3,2091.9,4.78028]
[1742815464228,7.77984,2092.2,2091.8,10.01256]
[1742815464527,0.55,2092.0,2091.8,5.232]
[1742815464824,0.55,2092.0,2091.5,10.01125]
[1742815464825,9.163175,2092.0,2091.5,10.01125]
[1742815465126,9.163175,2092.0,2091.6,4.78101]
[1742815465127,0.55,2091.8,2091.6,4.78101]
[1742815465424,0.8319,2092.2,2091.9,4.78021]
[1742815465625,0.8319,2092.2,2091.9,4.78031]
[1742815465828,0.8319,2092.2,2092.0,4.7799]
[1742815466137,0.55,2092.1,2092.0,4.7799]
[1742815466426,0.55,2092.2,2092.0,4.7799]
[1742815466596,0.55,2091.8,2090.9,0.8203]
[1742815466799,0.55,2091.8,2091.6,4.78089]
[1742815467024,0.55,2091.8,2091.6,4.78095]
[1742815467723,0.55,2091.8,2091.6,4.78093]
[1742815468226,0.55,2091.8,2091.5,4.78124]
[1742815468525,0.55,2091.8,2091.5,9.56233]
[1742815468901,0.55,2091.8,2091.5,9.56223]
[1742815469524,0.55,2091.8,2091.6,4.78094]
[1742815469730,0.55,2091.9,2091.6,4.78089]
[1742815470138,5.33041,2091.9,2091.6,4.78089]
[1742815470732,3.55,2091.6,2091.3,0.35758682]
[1742815470937,8.33114,2091.6,2091.3,0.35758682]
[1742815471131,3.55,2091.6,2091.3,5.13923682]
[1742815471333,0.55,2091.6,2091.5,4.78116]
[1742815471837,0.55,2091.7,2091.5,4.78116]
[1742815472337,5.33088,2091.7,2091.4,4.78129]
[1742815472545,3.0,2091.6,2091.4,4.78129]
[1742815472749,4.2947837,2091.7,2091.4,9.56269]
[1742815472913,3.0,2091.6,2091.3,5.22891666]
[1742815473118,0.55,2091.5,2091.4,4.78148]
[1742815473523,0.55,2091.6,2091.5,4.78125]
[1742815473845,0.55,2091.7,2091.5,9.5625]
[1742815474143,0.55,2091.7,2091.4,9.56284]
[1742815474643,0.55,2091.7,2091.5,4.78125]
[1742815476176,0.55,2091.7,2091.6,4.78102]
[1742815476552,0.8167,2092.0,2091.3,9.98369]
[1742815476759,0.35786786,2092.1,2091.4,0.04780679]
[1742815477062,0.8281,2092.2,2092.0,4.78002]
[1742815477360,0.8121,2092.4,2092.1,4.77979]
[1742815477567,5.59132,2092.4,2092.1,4.77979]
[1742815477979,3.55,2092.3,2092.1,4.77979]
[1742815478192,4.942031,2092.3,2092.1,4.77979]
[1742815478695,0.55,2092.3,2092.1,4.77976]
[1742815479182,0.55,2092.3,2092.1,9.55954]
[1742815479369,3.55,2092.5,2092.1,4.77976]
[1742815479571,8.32905,2092.5,2092.1,9.55949]
[1742815479891,3.55,2092.5,2092.2,4.77963]
[1742815480186,7.21849865,2092.5,2092.2,4.77951]
[1742815480338,0.36241706,2092.5,2092.1,0.7651]
[1742815480534,3.0,2092.7,2092.4,4.7792]
[1742815480845,0.55,2092.7,2092.4,4.7792]
[1742815481150,0.55,2092.5,2092.4,4.7792]
[1742815481362,6.088451,2093.0,2092.6,4.77858]
[1742815481570,5.54087,2093.1,2092.7,9.55691]
[1742815481737,1.12051563,2093.1,2092.7,4.77841]
[1742815481935,3.0,2093.0,2092.8,4.77823]
[1742815482137,1.12051563,2093.1,2092.9,4.778]
[1742815482366,0.35731563,2093.1,2092.9,4.7779]
[1742815482560,4.77725,2093.3,2092.9,4.77788]
[1742815482736,4.032749,2093.2,2093.0,4.77765]
[1742815482938,5.55024,2093.4,2093.0,4.77765]
[1742815483350,0.7733,2093.4,2093.0,4.77765]
[1742815483565,5.55021,2093.4,2093.0,4.77765]
[1742815483766,4.77715,2093.3,2093.0,4.77765]
[1742815483979,0.55,2093.2,2093.0,4.77765]
[1742815484179,3.35095681,2093.3,2093.0,0.8014]
[1742815484383,0.35095681,2093.3,2093.2,4.77737]
[1742815484581,3.7733,2093.4,2093.2,4.77737]
[1742815484780,3.7733,2093.4,2093.1,4.77737]
[1742815484991,0.55,2093.2,2093.0,5.57921]
[1742815485454,0.55,2093.2,2093.0,10.35691]
[1742815485653,0.55,2093.2,2093.0,5.5791]
[1742815485875,0.55,2093.2,2093.0,10.35677]
[1742815486242,0.55,2093.2,2093.0,5.57907]
[1742815486442,0.55,2093.2,2093.1,4.7776]
[1742815486685,0.55,2093.2,2093.0,5.57907]
[1742815487509,0.55,2093.2,2093.0,10.35678]
[1742815487667,0.55,2093.2,2093.0,5.57907]
[1742815490874,0.55,2093.2,2093.1,4.7776]
[1742815491181,0.55,2093.2,2093.0,10.35675]
[1742815491587,0.55,2093.2,2093.0,5.57907]
[1742815491746,0.55,2093.2,2093.0,10.35682]
[1742815492148,4.7776,2093.1,2092.5,7.31369222]
[1742815492386,3.55,2092.8,2092.5,5.55037112]
[1742815492559,3.55,2092.8,2092.5,10.32929112]
[1742815492741,8.32834,2092.8,2092.5,10.32929112]
[1742815493144,3.0,2092.5,2092.3,5.60305]
[1742815493390,3.55,2092.6,2092.3,10.38234]
[1742815493560,3.55,2092.6,2092.3,5.60302]
[1742815494088,3.0,2092.5,2092.2,4.77944]
[1742815494279,0.55,2092.5,2092.3,4.77935]
[1742815495064,0.55,2092.5,2092.3,9.55865]
[1742815495385,0.55,2092.5,2092.3,9.55857]
[1742815495544,0.55,2092.5,2092.3,4.77927]
[1742815495949,0.55,2092.5,2092.3,9.55856]
[1742815496795,3.0,2092.6,2092.4,4.7792]
[1742815497178,3.0,2092.6,2092.4,9.55813]
[1742815497354,3.0,2092.6,2092.4,4.77904]
[1742815497994,3.0,2092.6,2092.4,4.77899]
[1742815499293,3.0,2092.6,2092.4,9.55807]
[1742815499502,3.0,2092.6,2092.4,9.55806]
[1742815499807,3.0,2092.6,2092.4,9.55808]
[1742815499970,3.0,2092.6,2092.4,4.77899]
[1742815500500,3.55,2092.6,2092.5,4.77897]
[1742815500697,3.55,2092.6,2092.4,4.77911]
[1742815501011,3.55,2092.6,2092.4,4.77906]
[1742815501167,3.55,2092.6,2092.5,4.77897]
[1742815501566,3.55,2092.6,2092.4,4.77906]
[1742815507920,3.0,2092.9,2092.3,5.8311]
[1742815508077,0.55,2092.8,2092.7,4.77844]
[1742815508417,0.55,2092.9,2092.7,4.77836]
[1742815508587,0.7677,2093.0,2092.8,4.77816]
[1742815508984,1.84888057,2093.2,2092.9,4.77805]
[1742815509190,1.84888057,2093.2,2092.8,4.77816]
[1742815509191,6.62626057,2093.2,2092.8,4.7782]
[1742815509404,4.14035406,2093.1,2092.8,9.55635]
[1742815509778,0.55,2093.0,2092.9,4.77805]
[1742815510711,3.0,2093.3,2093.0,4.77783]
[1742815510918,0.55,2093.3,2093.1,4.77749]
[1742815512121,0.55,2093.3,2093.1,9.55496]
[1742815512423,0.55,2093.3,2093.1,9.55491]
[1742815512618,0.36370336,2093.4,2093.3,4.77714]
[1742815512914,0.55,2093.4,2093.2,4.77729]
[1742815513091,0.55,2093.4,2093.2,9.55451]
[1742815513294,0.8077,2093.6,2093.2,4.77722]
[1742815513482,1.17524429,2093.6,2093.3,4.77706]
[1742815513680,1.17524429,2093.6,2093.4,4.77691]
[1742815513914,0.36754429,2093.6,2093.5,4.77668]
[1742815514099,3.7783,2093.8,2093.5,4.77668]
[1742815514615,0.7783,2093.8,2093.6,4.77644]
[1742815514820,5.55393,2094.0,2093.5,4.77663]
[1742815515025,7.77587,2093.9,2093.5,4.77663]
[1742815515204,3.0,2093.9,2093.6,4.77638]
[1742815515410,9.251923,2094.0,2093.6,4.77638]
[1742815515616,3.0,2093.9,2093.6,4.77635]
[1742815515919,1.14393396,2094.0,2093.7,4.77616]
[1742815516092,1.14393396,2094.0,2093.8,4.77596]
[1742815516297,1.14393396,2094.0,2093.7,4.7761]
[1742815516298,0.36563396,2094.0,2093.6,4.77634]
[1742815516614,3.0,2094.0,2093.7,9.55215]
[1742815516809,0.55,2093.9,2093.7,4.77605]
[1742815517130,3.7634,2094.2,2093.9,4.77565]
[1742815517287,0.7634,2094.2,2093.9,9.55126]
[1742815517486,3.7634,2094.2,2093.9,9.55126]
[1742815517702,0.7634,2094.2,2093.9,9.55126]
[1742815517909,3.55,2094.2,2093.9,9.55126]
[1742815518094,3.55,2094.2,2094.0,4.77553]
[1742815518291,3.55,2094.2,2093.9,4.77561]
[1742815518502,3.0,2094.3,2093.9,6.0487895]
[1742815518792,4.77396,2094.7,2094.3,4.77475]
[1742815519004,3.0,2094.6,2094.4,4.77454]
[1742815519317,0.36584927,2094.7,2094.4,4.7745]
[1742815519519,0.7815,2094.8,2094.6,4.7741]
[1742815519685,5.53547,2095.0,2094.6,4.77409]
[1742815519892,4.7735,2094.9,2094.6,4.77409]
[1742815520104,5.53547,2095.0,2094.6,10.502958]
[1742815520310,0.7621,2095.0,2094.7,4.77382]
[1742815520517,5.5354,2095.0,2094.7,4.77382]
[1742815520814,5.5354,2095.0,2094.1,11.29072857]
[1742815520815,0.55,2094.4,2094.2,4.77499]
[1742815521013,0.55,2094.4,2094.1,10.32556112]
[1742815521385,0.55,2094.4,2094.1,4.77519]
[1742815521792,0.55,2094.4,2094.1,9.55039]
[1742815521987,0.55,2094.4,2094.1,9.55035]
[1742815522199,0.55,2094.4,2094.1,4.77516]
[1742815522703,1.09069127,2094.4,2094.1,4.77516]
[1742815522903,5.86532127,2094.4,2094.1,4.77516]
[1742815523419,1.09069127,2094.4,2094.2,4.77509]
[1742815523619,5.32466,2094.4,2094.1,4.77528]
[1742815523993,5.32466,2094.4,2094.1,9.77728]
[1742815524807,4.77466,2094.4,2094.1,9.77728]
[1742815526519,4.77466,2094.4,2094.1,9.77724]
[1742815526723,8.57978,2094.5,2094.1,9.77724]
[1742815526893,4.77472,2094.4,2094.1,9.77724]
[1742815527289,0.7767,2094.8,2094.4,4.77442]
[1742815527525,4.77414,2094.7,2094.4,0.7975]
[1742815527793,4.77414,2094.7,2094.3,4.77483]
[1742815527794,7.77414,2094.7,2094.3,14.53255]
[1742815528104,3.0,2094.7,2094.4,4.77457]
[1742815528494,7.77395,2094.7,2094.4,4.77457]
[1742815528791,7.77395,2094.7,2094.3,9.75772]
[1742815528792,7.77396,2094.7,2094.3,9.7578]
[1742815528993,7.77396,2094.7,2094.3,14.5325]
[1742815529194,7.77396,2094.7,2094.4,4.7746]
[1742815529395,7.77396,2094.7,2094.3,16.22885424]
[1742815529717,7.77396,2094.7,2094.4,4.77463]
[1742815531736,7.77396,2094.7,2094.3,11.45423424]
[1742815532031,7.77396,2094.7,2094.4,4.77463]
[1742815532328,7.77396,2094.7,2094.3,11.45412424]
[1742815532535,7.77396,2094.7,2094.4,4.77462]
[1742815532837,7.77396,2094.7,2094.3,11.45412424]
[1742815532994,7.77396,2094.7,2094.3,16.22890424]
[1742815533194,7.77396,2094.7,2094.4,4.77459]
[1742815533830,12.54807,2094.7,2094.3,11.45412424]
[1742815534025,7.77396,2094.7,2094.3,11.45412424]
[1742815534214,7.77396,2094.7,2094.4,4.77462]
[1742815534419,3.0,2094.5,2094.3,11.45412424]
[1742815534731,4.77403,2094.7,2094.3,16.22887424]
[1742815535032,7.77403,2094.7,2094.3,16.22886424]
[1742815535331,7.77403,2094.7,2094.4,4.77461]
[1742815535514,12.54815,2094.7,2094.3,11.45412424]
[1742815535708,3.0,2094.5,2094.1,5.55037112]
[1742815535911,4.77486,2094.3,2094.1,5.55037112]
[1742815536108,5.32472,2094.4,2094.1,5.55037112]
[1742815536501,7.775,2094.3,2094.1,5.55037112]
[1742815536904,3.0,2094.3,2094.1,5.55037112]
[1742815537105,3.90580564,2094.4,2094.1,5.55037112]
[1742815537303,8.68053564,2094.4,2094.1,10.32559112]
[1742815537841,7.77487,2094.3,2094.1,5.55037112]
[1742815538339,7.77487,2094.3,2094.0,4.77545]
[1742815538635,7.77487,2094.3,2094.0,4.77546]
[1742815539008,4.77535,2094.1,2093.8,4.77593]
[1742815539225,4.77535,2094.1,2093.8,9.70793]
[1742815539226,3.0,2094.1,2093.8,9.70793]
[1742815539609,3.0,2094.1,2093.9,4.77577]
[1742815540432,3.0,2094.1,2093.8,9.70798]
[1742815541347,3.0,2094.1,2093.9,4.77575]
[1742815541915,3.0,2094.1,2093.8,4.77586]
[1742815542243,3.0,2094.1,2093.8,6.85512511]
[1742815543918,3.0,2094.1,2093.8,11.63104511]
[1742815544240,3.0,2094.1,2093.9,4.77577]
[1742815544414,3.0,2094.1,2093.8,6.85512511]
[1742815545366,3.0,2094.1,2093.9,4.77577]
[1742815545531,0.55,2094.3,2094.0,5.58555]
[1742815546062,3.35580564,2094.4,2094.1,4.77519]
[1742815546225,3.35580564,2094.4,2094.2,4.77499]
[1742815546626,0.35580564,2094.4,2094.2,9.54992]
[1742815546865,3.0,2094.5,2094.2,4.77493]
[1742815547073,3.0,2094.5,2094.2,9.5499]
[1742815547450,3.0,2094.5,2094.2,4.77493]
[1742815547688,3.0,2094.5,2094.3,4.77485]
[1742815548051,3.55,2094.6,2094.3,4.77485]
[1742815549200,3.55,2094.6,2094.3,4.77472]
[1742815550153,3.0,2094.6,2094.4,4.77454]
[1742815551155,3.0,2094.6,2094.3,4.77472]
[1742815551358,3.0,2094.6,2094.3,9.54944]
[1742815552285,3.0,2094.6,2094.3,4.77472]
[1742815552484,3.0,2094.6,2094.3,4.77471]
[1742815552687,3.0,2094.6,2094.3,9.54943]
[1742815552883,3.0,2094.6,2094.3,4.77471]
[1742815554298,3.0,2094.6,2094.3,9.54944]
[1742815555294,3.0,2094.6,2094.4,4.77462]
[1742815555992,0.7952,2094.9,2094.5,0.8105]
[1742815556300,8.56882,2094.9,2094.5,5.5848]
[1742815556464,13.34246,2094.9,2094.5,5.5848]
[1742815556665,8.56882,2094.9,2094.5,5.5848]
[1742815557167,4.77379,2094.8,2094.5,5.5848]
[1742815557793,8.56882,2094.9,2094.5,5.5848]
[1742815557996,13.34249,2094.9,2094.5,5.5848]
[1742815558997,4.77374,2094.8,2094.4,4.77461]
[1742815559172,4.77374,2094.8,2094.4,5.806157]
[1742815559379,4.77374,2094.8,2094.4,10.580647]